bitfinex/quotes_BTCUSD_20251226
["timestamp","ask_amount","ask_price","bid_price","bid_amount"]
[1766759468265,0.01124897,88897.0,88888.0,0.00566726]
[1766759468428,0.01124897,88897.0,88886.0,0.00035259]
[1766759468429,0.01124922,88895.0,88889.0,0.05632]
[1766759468629,0.0112496,88892.0,88889.0,0.05632]
[1766759469088,0.0112496,88892.0,88889.0,0.05577]
[1766759469292,0.01124922,88895.0,88889.0,0.05577]
[1766759469498,0.05624509,88897.0,88889.0,0.05577]
[1766759469499,0.02407624,88900.0,88895.0,0.00055]
[1766759469666,0.01124783,88906.0,88895.0,0.0062369]
[1766759469865,0.01124821,88903.0,88895.0,0.0056869]
[1766759470066,0.01045432,88902.0,88896.0,0.43433456]
[1766759470274,0.01045432,88901.0,88897.0,0.01132]
[1766759470677,0.01124808,88904.0,88897.0,0.01132]
[1766759470900,0.02407624,88905.0,88897.0,0.01132]
[1766759471244,0.01124732,88910.0,88897.0,0.01132]
[1766759471385,0.01124745,88909.0,88897.0,0.01132]
[1766759471560,0.01124758,88908.0,88897.0,0.01132]
[1766759471769,0.09156003,88911.0,88899.0,0.43433456]
[1766759472102,0.01124745,88909.0,88900.0,0.43433456]
[1766759472270,0.01124745,88909.0,88897.0,0.01132]
[1766759472271,0.01124796,88905.0,88897.0,0.01132]
[1766759472465,0.01124859,88900.0,88897.0,0.01132]
[1766759472750,0.01124859,88900.0,88870.0,0.44558695]
[1766759472751,0.01124998,88889.0,88870.0,0.44558695]
[1766759472935,0.01124998,88889.0,88887.0,0.045]
[1766759473132,0.01124998,88889.0,88858.0,0.13504]
[1766759473133,0.08143998,88889.0,88870.0,0.43433456]
[1766759473499,0.08143998,88889.0,88855.0,0.05627104]
[1766759473500,0.08143998,88889.0,88826.0,0.06135539]
[1766759473700,0.01124998,88889.0,88882.0,0.00748]
[1766759473906,0.01124998,88889.0,88844.0,0.03378102]
[1766759474142,0.87687998,88889.0,88874.0,0.00996]
[1766759474563,0.9365408,88889.0,88874.0,0.00996]
[1766759474825,0.87687998,88889.0,88840.0,0.43433456]
[1766759475040,0.87638241,88889.0,88867.0,0.01132]
[1766759475471,0.87638241,88889.0,88837.0,0.61516]
[1766759475740,0.87638241,88889.0,88852.0,0.01132]
[1766759477959,0.87638241,88889.0,88868.0,0.01132]
[1766759478306,0.87638241,88889.0,88853.0,0.82092]
[1766759478509,0.87638241,88889.0,88874.0,0.01132]
[1766759479310,0.87638241,88889.0,88871.0,0.01132]
[1766759479636,0.87638241,88889.0,88850.0,0.43433456]
[1766759479848,0.87638241,88889.0,88869.0,0.01132]
[1766759482107,0.87638241,88889.0,88841.0,0.01125606]
[1766759482108,0.87638241,88889.0,88824.0,0.01125821]
[1766759482315,0.87638241,88889.0,88860.0,0.03378441]
[1766759482559,0.87638241,88889.0,88848.0,0.045]
[1766759482917,0.96219152,88889.0,88848.0,0.045]
[1766759483231,0.96219152,88889.0,88824.0,0.82092]
[1766759483232,0.96219152,88889.0,88829.0,0.045]
[1766759483545,0.96219152,88889.0,88833.0,0.01072]
[1766759483934,1.00719152,88889.0,88833.0,0.01072]
[1766759484135,0.87638241,88889.0,88852.0,0.00164]
[1766759485027,0.87638241,88889.0,88850.0,0.045]
[1766759485028,0.87638241,88889.0,88872.0,0.05632]
[1766759486444,0.87638241,88889.0,88846.0,0.01100432]
[1766759486641,0.87638241,88889.0,88844.0,0.82092]
[1766759486642,0.87638241,88889.0,88877.0,0.01132]
[1766759487465,0.87603141,88889.0,88879.0,0.63792691]
[1766759487816,0.87603141,88889.0,88877.0,0.01132]
[1766759488245,0.87603141,88889.0,88860.0,0.63792691]
[1766759488396,0.87603141,88889.0,88887.0,0.01132]
[1766759490087,0.87603141,88889.0,88888.0,0.01132]
[1766759490282,0.90005762,88889.0,88888.0,0.01132]
[1766759490466,0.90005762,88889.0,88886.0,0.04539259]
[1766759490467,0.90005762,88889.0,88886.0,0.00035259]
[1766759490666,0.87603141,88889.0,88886.0,0.00035259]
[1766759490924,0.87603141,88889.0,88887.0,0.01132]
[1766759491098,0.86563,88889.0,88887.0,0.01132]
[1766759491869,0.00586499,88894.0,88887.0,0.01132]
[1766759492043,0.22494608,88911.0,88887.0,0.01132]
[1766759492044,0.86563,88897.0,88887.0,0.01132]
[1766759492250,1.143365,88912.0,88887.0,0.64924691]
[1766759492424,0.86349652,88911.0,88901.0,0.63792691]
[1766759492739,0.0002,88921.0,88902.0,0.01136]
[1766759492988,0.0002,88921.0,88911.0,0.63792691]
[1766759493215,0.44964751,88960.0,88911.0,0.63792691]
[1766759493217,0.86563,88957.0,88927.0,0.82092]
[1766759493427,0.0004,88978.0,88913.0,0.01124694]
[1766759493428,0.663984,88944.0,88930.0,0.63792691]
[1766759493646,0.86563,88947.0,88930.0,0.63792691]
[1766759493647,0.589839,88943.0,88930.0,0.63792691]
[1766759493815,0.86563,88939.0,88931.0,0.05636]
[1766759494071,0.0114429,88945.0,88920.0,0.63792691]
[1766759494072,0.86563,88944.0,88932.0,0.05636]
[1766759494284,0.0002,88945.0,88911.0,0.82092]
[1766759494285,0.01124467,88931.0,88911.0,0.82092]
[1766759494457,0.01124467,88931.0,88889.0,0.01124998]
[1766759494458,0.01124467,88931.0,88900.0,0.82092]
[1766759494459,0.01124517,88927.0,88900.0,0.82092]
[1766759494624,0.87687479,88930.0,88901.0,0.05636]
[1766759494831,0.02169303,88929.0,88903.0,0.82092]
[1766759495037,0.01044811,88928.0,88905.0,0.82092]
[1766759495209,0.01124467,88931.0,88907.0,0.82092]
[1766759495444,0.01124492,88929.0,88909.0,0.82092]
[1766759495649,0.01124492,88929.0,88900.0,0.63792691]
[1766759495650,0.01124517,88927.0,88900.0,0.63792691]
[1766759496006,0.01124517,88927.0,88897.0,0.82092]
[1766759496007,0.02169409,88926.0,88901.0,0.05636]
[1766759496279,0.01124555,88924.0,88902.0,0.099088]
[1766759496495,0.01124517,88927.0,88903.0,0.05636]
[1766759496788,1.182472,88928.0,88924.0,0.000549]
[1766759496954,1.182472,88928.0,88924.0,0.01136002]
[1766759497149,0.940291,88926.0,88925.0,1e-08]
[1766759497350,0.01136,88916.0,88914.0,0.0452]
[1766759497556,0.05621933,88938.0,88914.0,0.0452]
[1766759497557,0.86563,88960.0,88916.0,0.82092]
[1766759497737,0.11681,88943.0,88930.0,0.63792691]
[1766759497936,0.42735,88944.0,88933.0,0.63792691]
[1766759498182,0.01124088,88961.0,88933.0,0.63792691]
[1766759498183,0.01123961,88971.0,88934.0,0.82092]
[1766759498395,0.01044468,88963.0,88946.0,0.63792691]
[1766759498559,0.00010778,88964.0,88954.0,0.63792691]
[1766759498759,0.00010778,88964.0,88955.0,0.01136]
[1766759499159,0.16179862,88963.0,88944.0,0.82092]
[1766759499385,0.632886,88959.0,88950.0,0.63792691]
[1766759499583,0.632886,88959.0,88945.0,0.0002]
[1766759499584,0.01124176,88954.0,88945.0,0.0002]
[1766759499831,0.01124138,88957.0,88945.0,0.0002]
[1766759499832,1.424654,88957.0,88946.0,0.01136]
[1766759500007,1.376281,88958.0,88946.0,0.01136]
[1766759500212,1.501509,88959.0,88947.0,0.63792691]
[1766759500386,0.870921,88960.0,88947.0,0.63792691]
[1766759500724,0.605421,88958.0,88947.0,0.63792691]
[1766759500923,0.747944,88961.0,88947.0,0.63792691]
[1766759501069,0.735921,88960.0,88946.0,0.01136]
[1766759501271,0.161035,88963.0,88950.0,0.63792691]
[1766759501513,0.00010778,88964.0,88946.0,0.01136]
[1766759501718,0.158097,88963.0,88950.0,0.63792691]
[1766759502048,0.148366,88963.0,88950.0,0.63792691]
[1766759502240,0.148366,88963.0,88946.0,0.01136]
[1766759502549,0.148366,88963.0,88950.0,0.63792691]
[1766759503097,0.01124176,88954.0,88945.0,0.0002]
[1766759503311,0.86563,88961.0,88940.0,0.045]
[1766759503510,0.941757,88960.0,88950.0,0.63792691]
[1766759503714,0.848945,88963.0,88950.0,0.63792691]
[1766759503918,0.00010778,88964.0,88950.0,0.63792691]
[1766759504117,0.692748,88982.0,88952.0,1.36694]
[1766759504438,0.692748,88982.0,88946.0,0.01136]
[1766759504439,0.561415,88981.0,88963.0,1.36694]
[1766759504643,0.0002,88980.0,88965.0,1.36694]
[1766759504842,0.169429,88979.0,88970.0,0.63792691]
[1766759505002,0.169429,88979.0,88964.0,0.01136]
[1766759505216,0.169429,88979.0,88960.0,0.63812691]
[1766759505217,0.933099,88975.0,88965.0,0.01136]
[1766759505390,0.933099,88975.0,88937.0,0.01124391]
[1766759505391,0.64310661,88930.0,88922.0,1.36694]
[1766759505601,0.64310661,88930.0,88914.0,0.01144682]
[1766759505602,0.01124201,88952.0,88924.0,0.73651396]
[1766759505841,0.01124138,88957.0,88940.0,0.63792691]
[1766759506038,0.0002,88980.0,88941.0,0.01136]
[1766759506039,0.87175,88954.0,88941.0,0.01136]
[1766759506298,1.37824125,88958.0,88954.0,0.000549]
[1766759506299,0.675224,88957.0,88954.0,0.000549]
[1766759506502,1.367,88958.0,88954.0,0.00010778]
[1766759506944,0.0002,88964.0,88954.0,0.00010778]
[1766759507144,0.01123987,88969.0,88950.0,0.00010778]
[1766759507440,0.01136,88965.0,88950.0,0.63803469]
[1766759508041,0.00010788,88969.0,88950.0,0.63803469]
[1766759508240,0.00010788,88969.0,88959.0,0.63792691]
[1766759508463,0.01124012,88967.0,88944.0,0.0002]
[1766759508642,0.06292701,88931.0,88927.0,1.36436517]
[1766759508877,0.01124113,88959.0,88928.0,1.39155299]
[1766759509075,1.4695,88962.0,88931.0,1.35312]
[1766759509616,1.4695,88967.0,88940.0,0.63792691]
[1766759509747,1.46960786,88967.0,88950.0,0.63792691]
[1766759509945,1.46960786,88967.0,88951.0,0.01136]
[1766759510584,1.48084798,88967.0,88951.0,0.01136]
[1766759510789,1.4695,88966.0,88951.0,0.01136]
[1766759510997,0.00010786,88967.0,88951.0,0.01136]
[1766759511160,0.00010786,88967.0,88957.0,0.63792691]
[1766759511598,0.00010786,88967.0,88952.0,0.06492869]
[1766759511775,1.4695,88976.0,88958.0,0.01136]
[1766759511988,0.01123784,88985.0,88958.0,0.01146786]
[1766759512187,1.4695,88986.0,88958.0,0.01146786]
[1766759512423,1.4695,88986.0,88970.0,0.63792691]
[1766759512638,1.4695,88986.0,88971.0,0.01136]
[1766759512853,0.01123646,88996.0,88972.0,0.06492869]
[1766759512854,1.4695,88996.0,88972.0,0.06492869]
[1766759513063,1.4695,88996.0,88980.0,0.63792691]
[1766759513218,0.121279,88999.0,88981.0,0.01136]
[1766759513420,0.0002,88990.0,88981.0,0.01136]
[1766759514301,0.01123582,89001.0,88981.0,0.01136]
[1766759514516,0.01136,89007.0,88970.0,0.0002]
[1766759514517,0.000549,88981.0,88970.0,0.63812691]
[1766759514721,0.000549,88981.0,88970.0,0.0002]
[1766759515019,1.4695,88980.0,88971.0,0.01136]
[1766759515265,0.01123873,88978.0,88972.0,0.01136]
[1766759515466,0.01123873,88978.0,88971.0,0.01136]
[1766759515467,0.001099,88972.0,88971.0,0.01136]
[1766759515847,0.0112386,88979.0,88971.0,0.01136]
[1766759516047,0.01123873,88978.0,88971.0,0.01136]
[1766759516251,0.01123873,88978.0,88958.0,0.00010786]
[1766759516252,0.01123936,88973.0,88958.0,0.00010786]
[1766759516564,0.01123936,88973.0,88909.0,0.13496]
[1766759516565,0.0112405,88964.0,88938.0,1.35312]
[1766759516729,0.0112405,88964.0,88949.0,0.0002]
[1766759516730,0.000107,88958.0,88949.0,0.0002]
[1766759516935,0.0002,88949.0,88927.0,1.35312]
[1766759517243,0.63792691,88960.0,88928.0,1.52368524]
[1766759518436,1.53694815,88958.0,88929.0,0.04496]
[1766759518720,1.4695,88957.0,88929.0,0.05632]
[1766759518941,1.4695,88957.0,88921.0,0.01124593]
[1766759518942,0.0112429,88945.0,88906.0,0.01124783]
[1766759519114,0.01124315,88943.0,88926.0,0.04496]
[1766759519313,0.000549,88926.0,88904.0,1.35312]
[1766759519513,0.000549,88926.0,88915.0,0.01136]
[1766759519713,1.4695,88938.0,88916.0,0.005652]
[1766759519914,0.01043785,88937.0,88916.0,0.005652]
[1766759520116,0.01045037,88936.0,88916.0,1.358772]
[1766759520318,0.02405335,88947.0,88916.0,0.005652]
[1766759520517,0.00010782,88947.0,88927.0,1.35312]
[1766759520719,0.00010782,88947.0,88928.0,0.12560524]
[1766759521102,0.01046729,88946.0,88929.0,1.35312]
[1766759521318,0.01046729,88945.0,88929.0,1.35312]
[1766759521641,0.01046729,88944.0,88929.0,1.35312]
[1766759521842,0.01046834,88943.0,88929.0,1.35312]
[1766759522167,0.01046834,88942.0,88930.0,0.12560524]
[1766759522287,0.01046834,88941.0,88930.0,0.01136]
[1766759522485,0.01046834,88941.0,88917.0,1.35312]
[1766759522486,0.000549,88930.0,88917.0,1.35312]
[1766759522746,0.000549,88930.0,88901.0,0.14624601]
[1766759522747,0.010481,88929.0,88906.0,1.35312]
[1766759522956,0.02405335,88939.0,88900.0,0.69416925]
[1766759522957,1e-06,88928.0,88918.0,0.05632]
[1766759523153,0.01124189,88953.0,88918.0,0.05632]
[1766759523154,0.03991563,88950.0,88920.0,1.35312]
[1766759523315,0.03991563,88950.0,88919.0,0.005652]
[1766759523316,0.02405335,88950.0,88923.0,0.01124568]
[1766759523499,0.02405335,88950.0,88931.0,0.01124467]
[1766759523695,0.02405335,88950.0,88930.0,0.63792691]
[1766759523696,0.02385335,88960.0,88936.0,1.40933996]
[1766759523952,0.0002,88969.0,88941.0,1.35312]
[1766759524156,0.0002,88969.0,88943.0,1.35312]
[1766759524302,0.0002,88969.0,88951.0,1.35312]
[1766759524521,0.0002,88969.0,88950.0,0.64916918]
[1766759524522,0.0002,88981.0,88959.0,0.01124113]
[1766759524719,0.0002,88981.0,88960.0,1.36448]
[1766759525129,0.0002,88981.0,88961.0,1.35312]
[1766759525419,0.0002,88981.0,88962.0,1.46736524]
[1766759525598,0.03010724,88988.0,88963.0,1.39808]
[1766759525805,0.166304,89000.0,88970.0,0.63792691]
[1766759526007,0.147086,88997.0,88978.0,0.0002]
[1766759526218,0.147086,88997.0,88979.0,0.01116]
[1766759526419,0.01123759,88987.0,88955.0,1.35312]
[1766759526741,1.4695,88985.0,88963.0,0.05632]
[1766759528007,1.4695,88985.0,88964.0,1.35312]
[1766759528454,0.00035987,88987.0,88964.0,1.35312]
[1766759528455,0.00035987,88987.0,88970.0,0.63792691]
[1766759528659,0.00035987,88987.0,88971.0,0.01136]
[1766759528800,0.105124,88995.0,88971.0,0.02259961]
[1766759529009,0.10918,88994.0,88973.0,0.01123936]
[1766759529209,0.10918,88994.0,88972.0,0.01687195]
[1766759529210,0.0002,88998.0,88984.0,0.01123797]
[1766759529458,0.0002,88998.0,88985.0,0.05632]
[1766759529819,0.0004,89006.0,88985.0,0.05632]
[1766759530164,0.347536,89005.0,88985.0,0.05632]
[1766759530337,0.0004,89006.0,88986.0,0.11424524]
[1766759530738,0.0004,89006.0,88988.0,1.35312]
[1766759530938,0.06041598,89016.0,88993.0,0.01123683]
[1766759531124,0.06041598,89023.0,88994.0,1.35312]
[1766759531324,0.00027834,89030.0,89002.0,1.35312]
[1766759531545,0.00027834,89030.0,89010.0,0.6491616]
[1766759531708,0.00027834,89030.0,89011.0,0.05632]
[1766759532150,0.00027834,89030.0,89011.0,0.06755456]
[1766759532360,0.00027834,89030.0,89012.0,1.35312]
[1766759532559,0.00027834,89030.0,89011.0,0.05632]
[1766759532560,0.0004,89043.0,89019.0,1.35312]
[1766759532730,0.0004,89043.0,89021.0,1.35312]
[1766759532932,0.00050785,89043.0,89021.0,1.35312]
[1766759533148,0.00050785,89043.0,89020.0,0.12560524]
[1766759533149,0.144888,89042.0,89022.0,0.05632]
[1766759534294,0.0112309,89040.0,89023.0,0.04792015]
[1766759534500,0.01123179,89033.0,89008.0,1.35312]
[1766759534662,0.01123179,89033.0,89009.0,0.17056524]
[1766759534663,0.01123191,89032.0,89009.0,0.17056524]
[1766759534863,0.01123179,89033.0,89010.0,0.05632]
[1766759535063,0.01123179,89033.0,88997.0,1.2144]
[1766759535064,0.00055,89010.0,89004.0,0.04496]
[1766759535311,0.00055,89010.0,89005.0,0.01136]
[1766759535470,1.25779,89028.0,89005.0,0.01136]
[1766759535673,0.03450124,89027.0,89005.0,1.231392]
[1766759535872,0.05416098,89041.0,89007.0,1.2144]
[1766759536114,0.02405782,89041.0,89007.0,1.22563507]
[1766759536318,0.02405782,89041.0,89011.0,1.2144]
[1766759536319,0.02416567,89041.0,89011.0,1.2144]
[1766759536675,0.03539645,89041.0,89011.0,1.2144]
[1766759536911,0.01123103,89039.0,89012.0,0.11424524]
[1766759537141,0.02416567,89041.0,89013.0,0.04496]
[1766759537142,0.01123279,89025.0,89013.0,0.04496]
[1766759537292,0.01123292,89024.0,89005.0,0.005632]
[1766759537489,0.01123292,89024.0,88985.0,0.13499755]
[1766759537490,0.69429229,89023.0,89006.0,0.01136]
[1766759537692,0.0002,89023.0,89007.0,0.01136]
[1766759538033,0.0002,89023.0,89008.0,0.005652]
[1766759539233,0.0801984,89039.0,89023.0,0.0002]
[1766759539234,0.02404308,89039.0,89023.0,0.0002]
[1766759539440,0.03538171,89041.0,89008.0,1.220052]
[1766759539589,0.03538171,89041.0,89009.0,0.01136]
[1766759539801,0.03538171,89041.0,89008.0,0.005652]
[1766759539802,0.0116304,89044.0,89041.0,0.000899]
[1766759539803,0.0004,89044.0,89041.0,0.000899]
[1766759540037,0.0004,89050.0,89042.0,0.01121]
[1766759540236,0.0004,89070.0,89042.0,0.01131785]
[1766759540440,0.0004,89070.0,89042.0,0.01918853]
[1766759540703,0.0004,89070.0,89046.0,0.01123015]
[1766759541063,0.0004,89070.0,89043.0,1.2144]
[1766759541282,0.0004,89070.0,89045.0,1.2144]
[1766759541516,0.0004,89070.0,89046.0,0.05632]
[1766759541672,0.0004,89070.0,89047.0,0.07022254]
[1766759542260,0.108472,89069.0,89047.0,1.07022254]
[1766759542484,0.0004,89070.0,89049.0,0.01122977]
[1766759542704,0.0004,89070.0,89048.0,0.13499755]
[1766759543060,0.0004,89070.0,89047.0,2.28462254]
[1766759543061,0.0004,89070.0,89049.0,0.11424524]
[1766759543995,0.0004,89070.0,89050.0,0.43300762]
[1766759544196,0.0004,89070.0,89049.0,0.11424524]
[1766759544435,0.0004,89070.0,89050.0,0.01122964]
[1766759544629,9e-05,89076.0,89049.0,0.11424524]
[1766759544630,9e-05,89076.0,89060.0,0.43300762]
[1766759544884,9e-05,89076.0,89061.0,0.05802947]
[1766759545062,9e-05,89076.0,89050.0,1.64740762]
[1766759545215,9e-05,89076.0,89061.0,0.04496]
[1766759545415,9e-05,89076.0,89062.0,0.01136]
[1766759545645,0.00100602,89063.0,89062.0,0.01136]
[1766759545858,9e-05,89076.0,89062.0,0.01136]
[1766759546055,9e-05,89076.0,89063.0,0.005632]
[1766759546563,9e-05,89076.0,89063.0,0.00415217]
[1766759547129,9e-05,89076.0,89062.0,0.01136]
[1766759547130,9e-05,89076.0,89064.0,1e-08]
[1766759547570,9e-05,89076.0,89050.0,1.2144]
[1766759547571,0.05613247,89075.0,89050.0,1.2144]
[1766759547773,9e-05,89076.0,89051.0,0.05628]
[1766759547774,0.43300762,89070.0,89051.0,0.05628]
[1766759547930,9e-05,89076.0,89052.0,0.09217512]
[1766759550283,9e-05,89076.0,89053.0,0.01122926]
[1766759550579,9e-05,89076.0,89052.0,1.20505512]
[1766759551127,9e-05,89076.0,89054.0,1.07879]
[1766759551378,9e-05,89076.0,89055.0,0.05628]
[1766759551586,9e-05,89076.0,89056.0,0.07022254]
[1766759551765,0.00024362,89071.0,89056.0,0.07022254]
[1766759552082,0.00024362,89071.0,89057.0,0.05628]
[1766759552384,0.00024362,89071.0,89058.0,0.01136]
[1766759552584,0.00024362,89071.0,89056.0,0.07022254]
[1766759552730,0.00024362,89071.0,89059.0,0.01136]
[1766759552954,0.00024362,89071.0,89063.0,1.0]
[1766759553323,0.00024362,89071.0,89063.0,0.999451]
[1766759553527,0.00024362,89071.0,89064.0,0.01136]
[1766759554330,0.00024362,89071.0,89064.0,0.01081]
[1766759554525,0.00024362,89071.0,89064.0,0.05445275]
[1766759554730,0.00024362,89071.0,89064.0,0.04423051]
[1766759554939,0.00024362,89071.0,89064.0,0.00058776]
[1766759555155,0.00024362,89071.0,89063.0,0.999451]
[1766759555284,0.00024362,89071.0,89027.0,0.01123254]
[1766759555285,0.43300762,89053.0,89046.0,0.01136]
[1766759555485,0.00010777,89053.0,89046.0,0.01136]
[1766759555942,1.25788,89076.0,89053.0,0.000107]
[1766759556150,1.25788,89076.0,89053.0,0.11424524]
[1766759556396,0.01042187,89070.0,89054.0,0.01136]
[1766759556705,3.62e-06,89071.0,89070.0,0.000441]
[1766759556938,3.62e-06,89071.0,89054.0,1.22576]
[1766759556939,3.62e-06,89071.0,89067.0,1e-08]
[1766759557874,3.62e-06,89076.0,89067.0,1e-08]
[1766759558234,3.62e-06,89076.0,89068.0,0.04561511]
[1766759558470,0.02402309,89092.0,89068.0,0.04561511]
[1766759558471,0.43300762,89090.0,89068.0,1.26001511]
[1766759558588,0.01044567,89088.0,89068.0,1.26001511]
[1766759558787,0.01044567,89088.0,89050.0,0.43300762]
[1766759558788,0.43300762,89080.0,89055.0,0.04492]
[1766759559036,0.43300762,89080.0,89056.0,1.22576]
[1766759559037,0.01044567,89079.0,89056.0,1.22576]
[1766759559398,0.09115655,89089.0,89058.0,1.2144]
[1766759559836,0.01122485,89088.0,89058.0,1.2144]
[1766759559989,0.09115655,89089.0,89058.0,1.2144]
[1766759560187,0.10238128,89089.0,89060.0,1.2144]
[1766759560427,0.06708107,89089.0,89060.0,1.2144]
[1766759560637,0.09115655,89089.0,89060.0,1.2144]
[1766759561606,0.44423348,89080.0,89060.0,1.2144]
[1766759561814,0.43300762,89070.0,89059.0,0.11424524]
[1766759562033,0.43300762,89070.0,89050.0,1.2144]
[1766759562034,0.43300762,89070.0,89054.0,0.04492]
[1766759562375,0.0002,89070.0,89055.0,0.01136]
[1766759562913,0.43320762,89070.0,89050.0,1.2146]
[1766759563284,0.43320762,89070.0,89039.0,0.01123103]
[1766759563285,0.43320762,89070.0,89051.0,0.01136]
[1766759563286,0.43300762,89060.0,89051.0,0.01136]
[1766759563488,0.02411007,89059.0,89051.0,1e-08]
[1766759564058,0.02411007,89059.0,89039.0,0.83508]
[1766759564257,0.43300762,89050.0,89040.0,0.077528]
[1766759564463,0.02412723,89049.0,89041.0,0.01136]
[1766759564808,0.43300762,89050.0,89041.0,0.01136]
[1766759565337,0.02414119,89049.0,89041.0,0.01136]
[1766759565542,0.02359119,89049.0,89041.0,0.01136]
[1766759565781,1.20981078,89060.0,89041.0,0.01136]
[1766759565989,0.43300762,89051.0,89041.0,0.00091077]
[1766759566197,0.43300762,89051.0,89018.0,0.01123368]
[1766759566198,0.0112304,89044.0,88997.0,0.01123633]
[1766759566350,0.43300762,89030.0,89012.0,0.04492]
[1766759566550,0.43300762,89030.0,89013.0,0.01136]
[1766759566774,0.43300762,89030.0,89014.0,0.079581]
[1766759567179,0.43300762,89030.0,89011.0,0.73953]
[1766759567559,0.43300762,89030.0,89003.0,0.0002]
[1766759567560,0.43300762,89021.0,89003.0,0.0002]
[1766759567697,0.43300762,89013.0,89003.0,0.0002]
[1766759568047,0.06741179,89006.0,89003.0,1e-08]
[1766759568245,0.01123456,89011.0,88955.0,0.22483131]
[1766759568246,0.01123595,89000.0,88977.0,0.73953]
[1766759568447,0.43300762,88990.0,88977.0,0.73953]
[1766759568878,0.43300762,88990.0,88977.0,0.00035987]
[1766759569083,0.43300762,88990.0,88974.0,0.01136]
[1766759569282,0.43300762,88984.0,88967.0,0.0002]
[1766759569412,0.01136,88983.0,88967.0,0.0002]
[1766759570810,0.43300762,88980.0,88967.0,0.0002]
[1766759571225,0.0002,88987.0,88967.0,0.0002]
[1766759571380,0.01156,88987.0,88967.0,0.0002]
[1766759571560,0.01156,88987.0,88968.0,0.08297754]
[1766759573384,0.01136,88986.0,88969.0,0.73953]
[1766759573567,0.0002,88987.0,88969.0,0.73953]
[1766759574390,0.01123582,89001.0,88969.0,0.73953]
[1766759574391,0.03018755,89011.0,88972.0,0.01123949]
[1766759574590,0.01136,89005.0,88973.0,0.73953]
[1766759574789,0.0002,89000.0,88980.0,0.0002]
[1766759575208,0.0002,89000.0,88982.0,0.01123822]
[1766759575386,0.7467,89017.0,88987.0,0.01123759]
[1766759575586,0.01136,89016.0,88986.0,0.75076772]
[1766759575792,0.01136,89016.0,88988.0,0.73953]
[1766759576033,0.7467,89017.0,88988.0,0.73953]
[1766759576184,0.7467,89017.0,88987.0,0.12548283]
[1766759576185,0.01136,89016.0,88991.0,0.73953]
[1766759576387,0.01136,89015.0,88992.0,0.01136]
[1766759576624,0.01136,89015.0,88993.0,0.04215242]
[1766759577510,0.03018755,89039.0,89001.0,0.73953]
[1766759577686,0.14798028,89037.0,89003.0,0.73953]
[1766759577890,0.271507,89029.0,89003.0,0.73953]
[1766759578071,0.260117,89027.0,89004.0,0.075089]
[1766759578643,0.260117,89027.0,86633.0,0.07449545]
[1766759578644,0.01123368,89018.0,88987.0,0.11424524]
[1766759578811,0.43300762,89014.0,88988.0,0.01136]
[1766759579008,0.01136,89017.0,88988.0,0.01136]
[1766759579332,0.01136,89017.0,88991.0,0.73953]
[1766759579531,0.01136,89017.0,88992.0,0.11424524]
[1766759579905,0.01136,89017.0,88992.0,0.1254822]
[1766759580096,0.01136,89017.0,88992.0,0.11424524]
[1766759580502,0.00010771,89027.0,88997.0,0.01123633]
[1766759580711,0.13434,89026.0,88998.0,0.75089]
[1766759580900,0.13434,89026.0,88992.0,0.11424524]
[1766759580901,0.75793368,89018.0,88999.0,0.01136]
[1766759581100,0.00010771,89027.0,88999.0,0.01136]
[1766759581309,0.00010771,89027.0,88991.0,0.01123709]
[1766759581310,0.342829,89026.0,89000.0,0.01136]
[1766759582047,0.233399,89026.0,89000.0,0.01136]
[1766759582470,0.44424105,89020.0,88993.0,0.75089]
[1766759582666,0.07876186,89019.0,88994.0,0.075089]
[1766759582820,0.07876186,89019.0,88980.0,0.47816762]
[1766759582821,0.05617851,89002.0,88980.0,0.0002]
[1766759583027,0.0112362,88998.0,88980.0,0.0002]
[1766759583340,0.0112362,88998.0,88956.0,0.14623906]
[1766759583341,0.01123658,88995.0,88960.0,0.73953]
[1766759583524,0.44424483,88990.0,88966.0,0.01136]
[1766759583737,0.44424483,88990.0,88960.0,0.73953]
[1766759583738,0.43300762,88980.0,88960.0,0.73953]
[1766759583933,0.81412427,88989.0,88963.0,0.01136]
[1766759583934,0.7467,88989.0,88963.0,0.01136]
[1766759584171,0.7467,88989.0,88967.0,0.00055914]
[1766759584477,0.43300762,88980.0,88967.0,0.01946339]
[1766759584677,0.43300762,88980.0,88954.0,0.0004]
[1766759584679,0.0674328,88978.0,88954.0,0.0004]
[1766759584970,0.0674328,88978.0,88954.0,0.00050787]
[1766759584971,0.43300762,88970.0,88954.0,0.00050787]
[1766759585176,0.43300762,88970.0,88949.0,0.74889884]
[1766759585352,0.7467,88978.0,88950.0,0.07488988]
[1766759585553,0.01136,88977.0,88952.0,0.05621]
[1766759585771,0.00759977,88977.0,88956.0,0.01124151]
[1766759586078,0.00759977,88977.0,88953.0,0.01124189]
[1766759586079,0.7467,88989.0,88967.0,0.0002]
[1766759586080,0.01136,88982.0,88967.0,0.0002]
[1766759586293,0.01171958,88982.0,88967.0,0.0002]
[1766759586988,0.0002,88987.0,88967.0,0.0002]
[1766759586989,0.0002,88987.0,88968.0,0.73953]
[1766759587190,0.0002,88987.0,88970.0,0.73953]
[1766759587391,0.01136,88996.0,88970.0,0.73953]
[1766759587832,0.01123683,88993.0,88970.0,0.73953]
[1766759587949,0.01123734,88989.0,88969.0,0.07734514]
[1766759588156,0.01123734,88989.0,88968.0,0.00035958]
[1766759588157,0.43300762,88990.0,88968.0,0.00035958]
[1766759589412,0.01123784,88985.0,88968.0,0.00035958]
[1766759589565,0.43300762,88980.0,88968.0,0.00035958]
[1766759589772,0.68281,88987.0,88968.0,0.00035958]
[1766759590151,0.0112381,88983.0,88968.0,0.00035958]
[1766759590381,0.0112381,88983.0,88935.0,0.77568]
[1766759590382,0.43300762,88971.0,88935.0,0.77568]
[1766759590609,0.2489,88968.0,88938.0,0.01136]
[1766759590775,0.2489,88968.0,88938.0,0.14635755]
[1766759590980,0.2489,88968.0,88938.0,0.15760133]
[1766759591199,0.2489,88968.0,88939.0,0.09760628]
[1766759591805,0.43300762,88960.0,88939.0,0.09760628]
[1766759592303,0.43300762,88950.0,88939.0,0.09760628]
[1766759592593,0.0112429,88945.0,88927.0,0.00027717]
[1766759592749,0.0112429,88945.0,88911.0,0.04496]
[1766759592750,0.43300762,88940.0,88917.0,0.01136]